bitfinex/quotes_SOLUSD_20260119
["timestamp","ask_amount","ask_price","bid_price","bid_amount"]
[1768826243003,2.18438959,134.11,134.08,26.90947134]
[1768826243307,2.1365193,134.12,134.09,2.06518759]
[1768826253897,2.1365193,134.11,134.08,16.32]
[1768826254098,2.1365193,134.11,134.08,18.38518759]
[1768826254713,2.1365193,134.11,134.09,2.06518759]
[1768826254897,2.1365193,134.12,134.09,2.06518759]
[1768826258798,9.59261988,134.12,134.09,2.06518759]
[1768826259420,2.1365193,134.11,134.08,18.38518759]
[1768826259626,2.1365193,134.11,134.08,21.37452093]
[1768826261628,2.1365193,134.11,134.08,18.38518759]
[1768826261799,2.1365193,134.11,134.09,2.08973202]
[1768826268332,2.1365193,134.11,134.08,16.32]
[1768826268925,2.1365193,134.11,134.07,12.67990596]
[1768826270130,2.1365193,134.11,134.08,2.08973202]
[1768826273522,2.00041485,134.1,134.08,2.08973202]
[1768826274835,103.1,134.14,134.08,2.08973202]
[1768826275038,103.1,134.14,134.1,2.14612493]
[1768826275538,2.98933334,134.13,134.09,2.14612493]
[1768826276336,2.98933334,134.13,134.09,9.60380008]
[1768826276933,2.00041485,134.12,134.09,9.60380008]
[1768826278539,2.00041485,134.12,134.09,2.14612493]
[1768826281432,1.94041485,134.12,134.09,2.14612493]
[1768826282842,1.94041485,134.12,134.09,9.60376642]
[1768826284142,1.94041485,134.12,134.09,12.59309976]
[1768826286740,1.94041485,134.12,134.09,5.13545827]
[1768826287120,1.88041485,134.12,134.09,5.13545827]
[1768826287441,1.88041485,134.12,134.09,2.14612493]
[1768826287642,1.88041485,134.12,134.09,5.13545827]
[1768826288141,1.88041485,134.12,134.09,12.59289946]
[1768826289247,1.88041485,134.12,134.09,5.13545827]
[1768826289644,1.88041485,134.12,134.09,2.14612493]
[1768826291148,2.00041485,134.13,134.1,2.14612493]
[1768826291337,113.54573308,134.14,134.11,5.13666939]
[1768826291338,105.10041485,134.14,134.11,5.13666939]
[1768826291535,2.00041485,134.14,134.11,2.14612493]
[1768826291938,2.00041485,134.14,134.11,5.13666939]
[1768826294335,9.45534361,134.14,134.11,2.14612493]
[1768826295650,2.00041485,134.14,134.11,2.14612493]
[1768826295848,9.45503027,134.15,134.12,2.14612493]
[1768826299751,2.99054446,134.14,134.1,2.14612493]
[1768826299938,2.00041485,134.13,134.09,21.47666939]
[1768826300953,2.00041485,134.13,134.1,2.14612493]
[1768826301744,2.00041485,134.12,134.09,18.48612493]
[1768826302153,2.00041485,134.12,134.1,2.14612493]
[1768826302459,2.00041485,134.12,134.09,18.48612493]
[1768826303158,2.00041485,134.12,134.09,16.34]
[1768826303457,2.00041485,134.12,134.09,18.50909174]
[1768826304258,9.4565148,134.12,134.09,2.16909174]
[1768826306044,2.08515712,134.11,134.09,2.16909174]
[1768826306559,2.08515712,134.11,134.08,2.16909174]
[1768826307861,2.02515712,134.11,134.08,2.16909174]
[1768826310363,2.08515712,134.11,134.08,2.16909174]
[1768826314668,10.44664441,134.12,134.08,2.16909174]
[1768826314669,9.54125707,134.12,134.08,2.16909174]
[1768826315268,9.54125707,134.12,134.08,2.99054446]
[1768826315448,9.54125707,134.12,134.09,2.16909174]
[1768826315647,2.08515712,134.12,134.09,2.16909174]
[1768826316266,9.54120267,134.12,134.09,2.16909174]
[1768826316566,2.08515712,134.14,134.1,2.16909174]
[1768826316771,9.53949927,134.15,134.11,2.16909174]
[1768826316971,2.08515712,134.14,134.11,2.16909174]
[1768826317175,9.53949927,134.15,134.11,2.16909174]
[1768826317558,2.08515712,134.14,134.11,2.16909174]
[1768826317764,2.08515712,134.14,134.11,5.1596362]
[1768826318456,2.08515712,134.14,134.11,2.16909174]
[1768826319194,2.08515712,134.13,134.08,9.62707305]
[1768826319476,2.08515712,134.12,134.09,2.16909174]
[1768826319971,12.53188123,134.12,134.09,2.16909174]
[1768826320177,1.98643195,134.11,134.09,2.16909174]
[1768826320491,1.98643195,134.1,134.07,2.04100511]
[1768826320659,1.98643195,134.1,134.07,5.03154957]
[1768826321477,1.98643195,134.09,134.06,18.38100511]
[1768826323885,1.98643195,134.09,134.07,2.04100511]
[1768826324587,1.98643195,134.09,134.06,18.38100511]
[1768826324763,1.98643195,134.09,134.07,2.04100511]
[1768826328088,9.4433811,134.11,134.07,2.04100511]
[1768826328395,12.43392556,134.11,134.07,2.04100511]
[1768826329367,1.98643195,134.1,134.07,2.04100511]
[1768826329572,1.98643195,134.09,134.07,2.04100511]
[1768826330475,1.98643195,134.09,134.05,9.64279163]
[1768826330685,1.98643195,134.08,134.05,2.04100511]
[1768826330868,4.97697641,134.08,134.05,2.04100511]
[1768826331181,1.98643195,134.08,134.05,2.04100511]
[1768826331361,4.97697641,134.08,134.05,2.04100511]
[1768826331560,1.98643195,134.07,134.05,2.04100511]
[1768826332085,1.98643195,134.07,134.03,2.04100511]
[1768826332291,1.98643195,134.06,134.03,2.04100511]
[1768826332594,1.98643195,134.06,134.03,9.50191195]
[1768826332768,1.98643195,134.06,134.04,2.15760041]
[1768826332970,5.05077371,134.07,134.04,2.15760041]
[1768826333185,2.06022925,134.07,134.04,2.15760041]
[1768826333990,12.5092705,134.08,134.04,2.15760041]
[1768826334292,2.06022925,134.08,134.05,2.15760041]
[1768826338105,9.51852179,134.08,134.05,2.15760041]
[1768826338598,12.50906625,134.08,134.05,2.15760041]
[1768826339005,2.06022925,134.05,134.0,7.46231198]
[1768826339300,2.06022925,134.04,134.01,2.15760041]
[1768826340009,2.06022925,134.07,134.04,2.15760041]
[1768826340176,2.06022925,134.07,134.05,2.15760041]
[1768826341504,2.99054446,134.09,134.05,2.15760041]
[1768826341505,2.06022925,134.08,134.05,2.15760041]
[1768826342186,2.06022925,134.08,134.04,2.99054446]
[1768826342187,2.06022925,134.09,134.07,2.15760041]
[1768826342504,9.51688434,134.11,134.07,2.99054446]
[1768826343411,2.06022925,134.11,134.08,2.99054446]
[1768826344314,2.06022925,134.11,134.08,5.14814487]
[1768826344483,2.06022925,134.11,134.08,2.15760041]
[1768826344685,2.06022925,134.11,134.08,5.14814487]
[1768826345602,2.06022925,134.11,134.08,2.15760041]
[1768826346102,2.06022925,134.11,134.08,5.14814487]
[1768826346608,2.06022925,134.12,134.09,2.15760041]
[1768826346781,18.63798953,134.14,134.11,2.15760041]
[1768826346782,2.06022925,134.14,134.11,2.15760041]
[1768826346987,9.51522728,134.14,134.11,2.12760044]
[1768826347186,12.50577174,134.14,134.11,2.12760044]
[1768826347387,2.06022925,134.13,134.11,2.12760044]
[1768826348404,2.06022925,134.13,134.09,10.44816067]
[1768826348902,2.06022925,134.13,134.1,2.15760041]
[1768826351911,2.06022925,134.13,134.1,5.14814487]
[1768826352617,1.73461228,165.13,134.12,5.14814487]
[1768826352618,2.06022925,134.15,134.12,5.14814487]
[1768826352803,2.06022925,134.15,134.12,2.15760041]
[1768826355818,2.06022925,134.15,134.12,2.12760042]
[1768826355995,2.06022925,134.15,134.12,5.11689567]
[1768826358835,2.06022925,134.15,134.12,2.12760042]
[1768826360429,9.51422748,134.16,134.13,2.15760041]
[1768826360724,9.51422748,134.16,134.13,2.12760042]
[1768826361834,2.06022925,134.15,134.12,2.98929525]
[1768826362711,2.06022925,134.15,134.12,5.14689566]
[1768826364639,7.45399823,134.16,134.13,2.05392238]
[1768826364829,9.52815391,134.16,134.13,2.05392238]
[1768826365411,9.52746573,134.17,134.14,2.05392238]
[1768826365701,2.07415568,134.16,134.14,2.05392238]
[1768826366516,2.07415568,134.16,134.13,5.04321763]
[1768826370526,2.07415568,134.16,134.13,2.05392238]
[1768826371526,9.52801598,134.16,134.13,2.05392238]
[1768826371729,2.07415568,134.16,134.13,2.05392238]
[1768826372624,2.07415568,134.16,134.13,12.49830784]
[1768826372927,2.07415568,134.16,134.13,5.04321763]
[1768826375029,2.07415568,134.16,134.13,2.05392238]
[1768826375214,2.07415568,134.16,134.13,5.04321763]
[1768826375828,9.52812458,134.16,134.13,2.05392238]
[1768826376207,2.07415568,134.16,134.13,2.05392238]
[1768826376402,2.07415568,134.16,134.13,5.04321763]
[1768826376608,2.07415568,134.16,134.13,12.49854664]
[1768826376809,2.07415568,134.17,134.15,2.05392238]
[1768826377016,9.527471,134.17,134.15,2.05392238]
[1768826377229,9.527471,134.17,134.14,2.05392238]
[1768826377932,7.45331532,134.17,134.14,2.05392238]
[1768826378230,2.07415568,134.16,134.14,2.05392238]
[1768826379250,2.07415568,134.17,134.14,2.05392238]
[1768826379421,112.62704804,134.18,134.14,2.05392238]
[1768826379616,2.07415568,134.18,134.15,2.12658204]
[1768826379824,9.52691684,134.18,134.15,2.12658204]
[1768826380135,2.0560319,134.17,134.15,2.12658204]
[1768826381017,9.50843608,134.19,134.16,2.12658204]
[1768826381435,9.50843608,134.19,134.16,2.09658205]
[1768826381624,2.0560319,134.18,134.16,2.09658205]
[1768826383133,2.0560319,134.18,134.15,2.98929525]
[1768826383422,2.0560319,134.18,134.15,2.12658204]
[1768826385946,2.0560319,134.17,134.14,2.12658204]
[1768826386121,2.0560319,134.17,134.14,5.11587729]
[1768826386850,2.0560319,134.17,134.15,2.12658204]
[1768826388134,9.50943477,134.17,134.14,2.12658204]
[1768826388447,2.0560319,134.17,134.14,2.12658204]
[1768826389528,2.0560319,134.17,134.15,2.12658204]
[1768826391045,2.0560319,134.17,134.13,2.12658204]
[1768826391220,2.0560319,134.15,134.12,2.12658204]
[1768826392844,9.51048321,134.15,134.12,2.12658204]
[1768826393740,2.15795819,134.14,134.11,2.02841951]
[1768826394438,2.15795819,134.14,134.12,2.02841951]
[1768826395423,9.6124095,134.15,134.12,5.01771476]
[1768826395623,9.6124095,134.15,134.12,2.02841951]
[1768826395921,9.6124095,134.15,134.12,5.01771476]
[1768826396632,9.6124095,134.15,134.12,2.02841951]
[1768826398244,2.15795819,134.14,134.11,2.98929525]
[1768826398753,2.15795819,134.14,134.11,5.01771476]
[1768826400452,9.61291344,134.14,134.11,2.02841951]
[1768826401043,2.15795819,134.14,134.11,2.02841951]
[1768826402353,2.15795819,134.14,134.11,5.01771476]
[1768826402550,9.6125473,134.15,134.12,5.01771476]
[1768826402856,9.6125473,134.15,134.13,2.02841951]
[1768826403149,9.6125473,134.15,134.12,2.02841951]
[1768826403348,9.6125473,134.15,134.12,5.01771476]
[1768826403743,9.6125473,134.15,134.12,2.02841951]
[1768826406254,2.15795819,134.14,134.12,2.02841951]
[1768826406778,2.15795819,134.14,134.11,2.02841951]
[1768826407756,9.61297971,134.14,134.11,2.02841951]
[1768826410533,2.15795819,134.14,134.11,2.02841951]
[1768826411456,2.15795819,134.14,134.11,5.01771476]
[1768826411660,2.15795819,134.14,134.12,2.02841951]
[1768826412047,9.61259696,134.15,134.12,5.01771476]
[1768826412253,9.61259696,134.15,134.12,2.02841951]
[1768826418750,2.15795819,134.14,134.11,2.02841951]
[1768826419563,5.14721478,134.14,134.11,2.02841951]
[1768826419765,2.15795819,134.14,134.11,2.02841951]
[1768826419957,9.61298959,134.14,134.11,2.02841951]
[1768826420463,7.4550314,134.14,134.11,2.02841951]
[1768826420651,2.15795819,134.13,134.11,2.02841951]
[1768826423272,9.42320091,134.14,134.11,2.02841951]
[1768826423572,1.96816951,134.14,134.11,2.02841951]
[1768826423749,9.42309007,134.14,134.11,2.02841951]
[1768826432768,1.96816951,134.13,134.11,2.02841951]
[1768826434277,1.96816951,134.13,134.1,1.9824183]
[1768826434569,1.96816951,134.13,134.1,4.97167489]
[1768826434773,1.96816951,134.13,134.11,1.9824183]
[1768826436473,9.42309007,134.14,134.11,1.9824183]
[1768826442874,9.42309007,134.14,134.11,4.97167489]
[1768826443568,9.42309007,134.14,134.11,1.9824183]
[1768826446381,9.47614491,134.13,134.11,1.9824183]
[1768826446956,2.02062093,134.13,134.11,1.9824183]
[1768826451562,9.47575849,134.14,134.11,1.9824183]
[1768826459087,2.09410541,134.13,134.1,2.06417762]
[1768826459274,2.09410541,134.13,134.11,2.06417762]
[1768826460478,9.54924297,134.14,134.11,2.06417762]
[1768826461881,2.09410541,134.15,134.12,2.06417762]
[1768826462680,9.54863634,134.15,134.12,2.06417762]
[1768826463388,2.09410541,134.17,134.14,2.06417762]
[1768826463989,2.09410541,134.16,134.14,2.06417762]
[1768826464874,2.09410541,134.15,134.11,5.05343421]
[1768826465267,2.09410541,134.15,134.12,2.06417762]
[1768826466490,9.54890011,134.15,134.12,2.06417762]
[1768826467490,9.54815431,134.16,134.12,2.06417762]
[1768826471794,2.09410541,134.15,134.12,2.06417762]
[1768826471994,9.54815431,134.16,134.12,2.06417762]
[1768826472196,7.4540489,134.16,134.12,2.06417762]
[1768826472379,105.19410541,134.18,134.14,2.06417762]
[1768826472580,2.09410541,134.18,134.14,2.06417762]
[1768826473097,2.09410541,134.18,134.15,2.06417762]
[1768826473397,9.54726565,134.18,134.15,2.06417762]
[1768826474277,2.09410541,134.17,134.15,2.06417762]
[1768826475488,2.09410541,134.16,134.13,2.20633919]
[1768826475690,9.54736966,134.17,134.14,2.06417762]
[1768826477703,2.09410541,134.17,134.14,2.06417762]
[1768826479699,9.54741011,134.17,134.14,2.06417762]
[1768826482306,2.09410541,134.16,134.14,0.97907692]
[1768826482487,2.0341054,134.16,134.14,0.97907692]
[1768826484481,7.4533047,134.17,134.14,0.97907692]
[1768826484684,9.41326547,134.17,134.14,0.97907692]
[1768826488202,1.95996077,134.15,134.12,2.11049081]
[1768826489598,9.41478587,134.15,134.12,2.11049081]
[1768826490702,9.41478587,134.15,134.11,16.34]
[1768826490703,1.95996077,134.14,134.11,16.34]
[1768826490906,9.41494189,134.14,134.11,18.45049081]
[1768826493498,1.95996077,134.13,134.1,2.11049081]
[1768826493803,1.95996077,134.12,134.1,2.11049081]
[1768826494609,1.89996071,134.12,134.1,2.11049081]
[1768826494986,1.83996071,134.12,134.1,2.11049081]
[1768826497790,9.41582222,134.13,134.1,2.11049081]
[1768826502313,2.07322398,134.11,134.08,18.42524296]
[1768826503722,2.07322398,134.12,134.09,2.10524296]
[1768826504304,9.5293726,134.12,134.09,2.10524296]
[1768826510426,12.51785697,134.12,134.09,2.10524296]
[1768826514327,9.5293726,134.12,134.09,2.10524296]
[1768826514637,12.51785697,134.12,134.09,2.10524296]
[1768826520038,9.5293726,134.12,134.09,2.10524296]
[1768826520340,12.51785697,134.12,134.09,2.10524296]
[1768826521149,9.5293726,134.12,134.09,2.10524296]
[1768826521445,12.51785697,134.12,134.09,2.10524296]
[1768826522746,2.10272485,134.1,134.07,2.17770574]
[1768826522932,2.0427248,134.1,134.07,2.17770574]
[1768826524351,10.44546704,134.11,134.07,2.17770574]
[1768826524846,12.54819189,134.11,134.07,2.17770574]
[1768826527235,2.10272485,134.1,134.07,2.03554417]
[1768826527831,2.10272485,134.09,134.07,2.03554417]
[1768826530353,9.56056683,134.09,134.07,2.03554417]
[1768826530954,12.5490512,134.09,134.07,2.03554417]
[1768826531266,5.09120922,134.08,134.06,16.34]
[1768826532052,2.10272485,134.08,134.06,16.34]
[1768826533150,2.10272485,134.08,134.06,18.37554417]
[1768826533529,9.5609835,134.08,134.06,18.37554417]
[1768826533834,12.54946787,134.08,134.06,18.37554417]
[1768826534234,9.5609835,134.08,134.06,18.37554417]
[1768826535456,2.10272485,134.07,134.04,2.17770574]
[1768826535764,12.54946787,134.08,134.04,2.17770574]
[1768826536761,9.5609835,134.08,134.04,2.17770574]
[1768826538151,9.5609835,134.08,134.04,2.03554417]
[1768826539066,2.10272485,134.07,134.04,2.03554417]
[1768826541540,12.55375547,134.08,134.04,2.03554417]
[1768826541911,2.10272485,134.06,134.03,16.48216157]
[1768826542160,2.10272485,134.07,134.04,2.03554417]
[1768826545661,2.10272485,134.07,134.03,23.94301052]
[1768826545970,12.46810832,134.08,134.04,2.14160082]
[1768826546164,2.01683258,134.07,134.04,2.14160082]
[1768826548867,9.47533635,134.08,134.05,2.14160082]
[1768826549167,2.01683258,134.07,134.04,5.13437279]
[1768826549361,1.95683257,134.07,134.04,2.14160082]
[1768826549548,1.89683256,134.07,134.04,2.14160082]
[1768826559656,1.83683256,134.07,134.04,2.14160082]
[1768826561575,12.28842327,134.07,134.04,2.14160082]
[1768826563461,2.16682789,134.06,134.04,2.14160082]
[1768826564159,2.16682789,134.06,134.03,16.34]
[1768826564359,2.16682789,134.06,134.03,18.41845617]
[1768826565081,2.16682789,134.06,134.04,2.07845617]
[1768826565581,9.6261762,134.06,134.04,2.07845617]
[1768826566383,9.56617619,134.06,134.04,2.07845617]
[1768826568688,9.56617619,134.06,134.03,18.41845617]
[1768826570186,2.10682788,134.06,134.03,18.41845617]
[1768826570789,9.62528743,134.08,134.04,2.07845617]
[1768826571086,2.16682789,134.07,134.04,2.07845617]
[1768826572790,9.62571146,134.07,134.04,2.07845617]
[1768826573888,9.47782332,134.08,134.04,2.07845617]
[1768826574398,9.47782332,134.08,134.05,1.99727268]
[1768826574574,2.01957141,134.07,134.05,1.99727268]
[1768826575892,2.01957141,134.07,134.04,9.45772786]
[1768826576489,2.01957141,134.07,134.04,12.45049983]
[1768826577198,2.01957141,134.1,134.07,1.99727268]
[1768826577993,9.47681735,134.1,134.07,1.99727268]
[1768826580396,9.47681735,134.1,134.07,1.99727268]
[1768826585496,7.45724594,134.1,134.07,1.99727268]
[1768826585676,7.45724594,134.1,134.08,1.99727268]
[1768826586398,9.47681735,134.1,134.08,1.99727268]
[1768826588704,9.47681735,134.1,134.07,1.99727268]
[1768826591315,2.01957141,134.12,134.08,1.99727268]
[1768826591500,9.47585274,134.12,134.09,1.99727268]
[1768826595522,2.01957141,134.11,134.09,1.99727268]
[1768826612322,9.6123914,134.13,134.1,2.03548582]
[1768826612618,2.15687969,134.13,134.1,2.03548582]
[1768826627933,2.17536123,134.12,134.09,16.34]
[1768826628121,2.17536123,134.11,134.08,2.12700715]
[1768826638332,2.17536123,134.11,134.08,9.58521536]
[1768826641642,2.17536123,134.11,134.08,2.12700715]
[1768826641941,2.03797097,134.1,134.06,9.45784768]
[1768826642616,2.03797097,134.1,134.07,1.99857645]
[1768826643015,2.03797097,134.1,134.07,9.45724408]
[1768826651552,2.03797097,134.1,134.08,1.99857645]
[1768826652462,2.03797097,134.1,134.08,9.45678021]
[1768826652644,2.03797097,134.11,134.08,1.99857645]
[1768826653530,2.03797097,134.11,134.08,9.45655273]
[1768826657259,2.03797097,134.1,134.06,1.99857645]
[1768826657460,2.03797097,134.09,134.06,9.45765036]
[1768826657643,2.03797097,134.09,134.06,1.99857645]
[1768826658253,2.03797097,134.09,134.07,1.99857645]
[1768826658555,2.03797097,134.09,134.07,9.4572622]
[1768826658960,2.03797097,134.09,134.07,1.99857645]
[1768826663449,9.46495357,134.11,134.07,1.99857645]
[1768826663860,2.00823808,134.1,134.07,1.99857645]
[1768826666160,2.00823808,134.11,134.08,2.17836051]
[1768826666967,2.00823808,134.11,134.07,7.45868786]
[1768826667155,9.46452506,134.12,134.08,2.17836051]
[1768826667365,2.00823808,134.12,134.08,2.17836051]
[1768826668269,2.00823808,134.12,134.09,2.17836051]
[1768826670357,9.46431419,134.12,134.09,2.17836051]
[1768826677682,2.00823808,134.11,134.09,2.17836051]
[1768826680288,7.45657868,134.11,134.07,2.28015534]
[1768826680456,2.07639507,134.1,134.07,2.13799377]
[1768826698201,7.45657868,134.11,134.08,2.1373999]
[1768826698495,9.51077667,134.11,134.08,2.1373999]
[1768826700300,2.05419799,134.1,134.08,2.1373999]
[1768826700481,2.05419799,134.1,134.07,2.27956147]
[1768826700878,2.05419799,134.09,134.06,2.1373999]
[1768826701083,2.05419799,134.09,134.05,18.61956147]
[1768826701293,2.05419799,134.09,134.06,2.1373999]
[1768826701495,2.05419799,134.1,134.06,9.59660933]
[1768826701804,2.05419799,134.11,134.08,2.1373999]
[1768826702406,9.51078366,134.11,134.08,2.1373999]
[1768826705010,2.05419799,134.13,134.1,2.1373999]
[1768826705999,9.50994165,134.13,134.1,2.1373999]
[1768826706390,7.45574366,134.13,134.1,2.1373999]
[1768826706592,2.05419799,134.12,134.1,2.1373999]
[1768826707703,2.05419799,134.12,134.09,0.14216157]
[1768826707905,2.05419799,134.11,134.07,2.1373999]
[1768826709707,2.05419799,134.1,134.07,2.1373999]
[1768826711210,7.45677874,134.11,134.08,2.99162042]
[1768826711409,9.51043286,134.12,134.09,2.1373999]
[1768826711616,2.05419799,134.13,134.1,2.1373999]
[1768826712984,2.05419799,134.12,134.09,2.27956147]
[1768826716487,9.51037512,134.12,134.09,2.1373999]
[1768826724917,9.51037512,134.12,134.09,5.12793124]
[1768826738323,9.51037512,134.12,134.09,2.1373999]
[1768826743426,18.63527843,134.16,134.11,1.96228101]
[1768826743611,18.63527843,134.16,134.12,1.96228101]
[1768826743612,28.07653786,134.16,134.12,1.96228101]
[1768826743926,1.98747291,134.15,134.12,1.96228101]
[1768826745918,9.4418256,134.15,134.12,1.96228101]
[1768826747238,1.98747291,134.15,134.12,4.95281235]
[1768826751537,1.98747291,134.17,134.14,4.95281235]
[1768826751828,1.98747291,134.17,134.15,4.95281235]
[1768826753024,1.98747291,134.17,134.15,1.96228101]
[1768826753213,1.98747291,134.17,134.13,2.31100371]
[1768826753621,7.45378652,134.16,134.13,2.16884214]
[1768826753924,9.47220979,134.16,134.13,2.16884214]
[1768826755039,2.01842327,134.16,134.13,2.16884214]
[1768826760739,2.01842327,134.14,134.12,16.34]
[1768826760933,2.01842327,134.14,134.11,2.16884214]
[1768826764239,2.01842327,134.14,134.11,9.62538764]
[1768826765843,2.01842327,134.15,134.12,2.16884214]
[1768826767239,2.01842327,134.15,134.11,12.61591898]
[1768826767446,2.01842327,134.15,134.11,9.62538764]
[1768826768117,2.01842327,134.14,134.11,7.4565455]
[1768826768330,2.01842327,134.12,134.09,16.32]
[1768826768826,2.01842327,134.12,134.09,18.48884214]
[1768826769224,2.01842327,134.12,134.09,2.16884214]
[1768826781064,5.00895461,134.12,134.09,2.16884214]
[1768826782856,12.46546518,134.12,134.09,2.16884214]
[1768826784859,2.10478709,134.1,134.07,16.46216157]
[1768826785061,2.10478709,134.1,134.07,18.60139501]
[1768826785362,2.0447871,134.1,134.07,18.60139501]
[1768826785751,2.0447871,134.1,134.07,26.06007851]
[1768826786658,7.45572063,134.13,134.08,9.59740863]
[1768826786842,2.99098924,134.12,134.09,2.13923344]
[1768826787044,10.44615579,134.14,134.09,5.13022268]
[1768826787247,2.10478709,134.13,134.1,2.13923344]
[1768826791672,2.10478709,134.12,134.1,2.13923344]
[1768826797678,2.10478709,134.13,134.1,9.59629843]
[1768826797863,2.10478709,134.14,134.11,2.13923344]
[1768826798066,2.10478709,134.15,134.12,2.13923344]
[1768826799784,2.01618726,134.16,134.13,1.99259559]
[1768826814818,2.01618726,134.16,134.12,12.4318293]
[1768826816324,2.01618726,134.16,134.13,9.44039731]
[1768826816528,2.01072113,134.17,134.14,1.98501239]
[1768826822643,2.01072113,134.17,134.15,1.98501239]
[1768826831732,9.46343054,134.18,134.15,1.98501239]
[1768826832114,2.01072113,134.17,134.14,1.98501239]
[1768826832319,2.01072113,134.17,134.13,2.12717396]
[1768826833028,5.00171037,134.17,134.13,2.12717396]
[1768826833214,2.01072113,134.16,134.13,2.12717396]
[1768826835538,9.464558,134.16,134.13,1.98501239]
[1768826839638,2.01072113,134.14,134.11,2.12717396]
[1768826839818,2.01072113,134.12,134.1,1.98501239]
[1768826840139,10.44636226,134.14,134.1,1.98501239]
[1768826842037,2.01072113,134.13,134.1,1.98501239]
[1768826845130,2.02729416,134.12,134.09,2.22776542]
[1768826845853,2.02729416,134.12,134.09,9.68539597]
[1768826848247,2.02729416,134.12,134.09,12.67566329]
[1768826849762,2.02729416,134.12,134.09,5.21803274]
[1768826849975,2.02729416,134.12,134.09,2.08560385]
[1768826850342,2.02729416,134.1,134.07,2.08560385]
[1768826850559,1.96729417,134.1,134.07,2.08560385]
[1768826850958,2.99026732,134.1,134.07,2.08560385]
[1768826851161,2.99026732,134.11,134.07,2.08560385]
[1768826852051,26.0960565,134.12,134.07,2.08560385]
[1768826852360,2.99026732,134.11,134.07,2.08560385]
[1768826852560,2.02729416,134.1,134.07,2.08560385]
[1768826855047,18.64002385,134.12,134.08,2.08560385]
[1768826855048,9.48355305,134.12,134.08,2.08560385]
[1768826855950,2.02729416,134.11,134.08,2.08560385]
[1768826856344,2.02729416,134.12,134.09,2.08560385]
[1768826859371,9.48336593,134.12,134.09,2.08560385]
[1768826860044,12.47363325,134.12,134.09,2.08560385]
[1768826860268,2.05172092,134.11,134.08,2.19131206]
[1768826865190,9.50842622,134.11,134.08,2.04915049]
[1768826868588,2.05172092,134.1,134.07,2.19131206]
[1768826874504,2.04835527,134.12,134.09,2.04475007]
[1768826879097,2.04835527,134.12,134.09,5.03501739]
[1768826882794,2.04835527,134.12,134.1,2.04475007]
[1768826885490,9.50353029,134.14,134.11,2.04475007]
[1768826886013,9.50353029,134.14,134.11,5.03501739]
[1768826886312,2.04835527,134.13,134.11,5.03501739]
[1768826887130,2.04835527,134.12,134.09,18.38475007]
[1768826887804,2.04835527,134.12,134.09,16.34]
[1768826888110,2.04835527,134.11,134.09,16.34]
[1768826888294,2.04835527,134.11,134.09,16.31000001]
[1768826888495,2.04835527,134.11,134.08,2.04475007]
[1768826889414,12.49528758,134.11,134.08,2.04475007]
[1768826889590,2.04835527,134.1,134.07,2.18691164]
[1768826890805,2.04835527,134.1,134.06,18.38475007]
[1768826890806,2.04835527,134.09,134.06,18.38475007]
[1768826891012,2.04835527,134.08,134.06,18.38475007]
[1768826891514,2.04835527,134.09,134.06,18.38475007]
[1768826891812,2.04835527,134.1,134.07,5.03501739]
[1768826892408,2.04835527,134.1,134.07,2.04475007]
[1768826895314,9.50548148,134.1,134.07,2.04475007]
[1768826896602,12.4957488,134.1,134.07,2.04475007]
[1768826897808,9.50548148,134.1,134.07,2.04475007]
[1768826898514,2.04835527,134.09,134.04,0.14216157]
[1768826898698,2.04835527,134.09,134.05,2.04475007]
[1768826898699,5.03862259,134.08,134.05,2.04475007]
[1768826898902,2.04835527,134.08,134.05,2.01475008]
[1768826902017,2.04835527,134.07,134.04,18.38475007]
[1768826902317,2.04835527,134.07,134.05,2.04475007]
[1768826905827,2.04835527,134.07,134.04,18.36392897]
[1768826906604,2.04835527,134.07,134.05,2.02392897]
[1768826911116,1.96879254,134.08,134.05,2.02392897]
[1768826913831,9.42714876,134.08,134.05,2.02392897]
[1768826916336,12.42016733,134.08,134.05,2.02392897]
[1768826923639,9.44774658,134.07,134.04,18.40096638]
[1768826923841,9.44774658,134.07,134.04,21.39398495]
[1768826927040,9.44774658,134.07,134.05,2.06096638]
[1768826928243,1.98881598,134.07,134.04,21.39398495]
[1768826928419,1.98881598,134.07,134.04,18.40096638]
[1768826928616,1.98881598,134.07,134.04,21.39398495]
[1768826930043,9.44760745,134.07,134.04,18.40096638]
[1768826930244,9.44760745,134.07,134.04,21.39398495]
[1768826932429,1.98881598,134.06,134.04,16.34]
[1768826933942,1.98881598,134.06,134.03,2.15891905]
[1768826934436,9.44841152,134.06,134.03,2.15891905]
[1768826935449,2.09433465,134.05,134.02,2.15891905]
[1768826935652,2.09433465,134.05,134.02,5.15193762]
[1768826936446,2.09433465,134.05,134.02,2.15891905]
[1768826936840,2.09433465,134.05,134.02,5.15193762]
[1768826937146,9.55429803,134.05,134.02,2.15891905]
[1768826938232,9.55429803,134.05,134.02,5.15193762]
[1768826939451,9.55429803,134.05,134.02,2.15891905]
[1768826940243,9.55429803,134.05,134.02,5.15193762]
[1768826941632,2.09433465,134.04,134.01,16.34]
[1768826941832,2.09433465,134.04,134.0,2.15891905]
[1768826942049,2.09433465,134.03,134.0,2.15891905]
[1768826942242,2.09433465,134.02,134.0,2.15891905]
[1768826942643,2.09433465,134.03,134.01,5.15193762]